bitfinex/quotes_ETHUSD_20250914
["timestamp","ask_amount","ask_price","bid_price","bid_amount"]
[1757852607422,0.8633,4642.8,4642.7,0.20073184]
[1757852608549,3.07257266,4642.8,4642.7,0.20073184]
[1757852608839,3.59520872,4642.8,4642.7,0.20073184]
[1757852609346,4.24167893,4642.8,4642.7,0.20073184]
[1757852611228,2.15403863,4642.5,4641.7,3.58]
[1757852611428,0.1072,4642.1,4641.8,0.20097557]
[1757852611630,0.6054,4642.1,4641.9,0.20097557]
[1757852611860,0.6054,4642.1,4642.0,0.20097557]
[1757852612341,0.8882,4642.1,4642.0,0.20097557]
[1757852614572,0.8882,4642.1,4641.6,2.1544086]
[1757852614871,0.4982,4642.0,4641.7,0.20080589]
[1757852615172,0.4982,4642.0,4641.8,0.20080589]
[1757852615474,0.4982,4642.0,4641.9,0.20080589]
[1757852616367,0.781,4642.0,4641.9,0.20080589]
[1757852616949,0.2828,4642.0,4641.7,2.15437865]
[1757852617346,0.08,4642.8,4642.3,2.1540664]
[1757852617549,0.08,4642.8,4642.4,0.9082]
[1757852617753,0.08,4642.8,4642.4,2.15404814]
[1757852617971,0.08,4642.8,4642.6,2.15392351]
[1757852618582,0.08,4642.8,4642.7,2.15391905]
[1757852618778,0.08,4642.8,4642.7,2.65211905]
[1757852620981,0.08,4642.8,4642.7,3.39921905]
[1757852621282,0.08,4642.8,4642.7,1.2453]
[1757852621895,0.08,4642.8,4642.7,2.65211905]
[1757852622081,0.179,4642.8,4642.7,0.4982]
[1757852622254,0.6772,4642.8,4642.7,0.4982]
[1757852623159,0.179,4642.8,4642.7,0.4982]
[1757852623885,3.07081145,4642.8,4641.8,2.15430737]
[1757852624202,2.95920117,4642.7,4641.8,2.15430737]
[1757852624482,2.95920117,4642.7,4641.7,4.0832]
[1757852624483,0.80528115,4642.7,4641.7,4.0832]
[1757852624788,0.4982,4642.6,4641.8,2.15433667]
[1757852625363,0.4982,4642.6,4641.7,4.0832]
[1757852625579,0.4982,4642.6,4641.8,2.59793161]
[1757852625785,0.4982,4642.6,4642.1,2.15419302]
[1757852626158,0.4982,4642.6,4642.1,2.61619302]
[1757852626686,0.4982,4642.6,4642.1,0.462]
[1757852626891,0.77140348,4642.6,4642.1,0.462]
[1757852627389,0.099,4642.2,4641.7,4.0822]
[1757852627759,0.099,4642.2,4641.8,0.462]
[1757852627968,0.1072,4642.3,4641.9,0.462]
[1757852628259,0.5703,4642.3,4641.9,2.15427274]
[1757852628793,0.1072,4642.3,4641.9,2.15427274]
[1757852628962,0.1072,4642.3,4641.9,2.61627274]
[1757852629164,0.1072,4642.3,4642.0,0.462]
[1757852629363,0.1072,4642.3,4642.0,2.61623725]
[1757852629562,0.1072,4642.3,4642.1,2.61618351]
[1757852629886,0.1072,4642.3,4642.2,0.3089]
[1757852630060,0.1072,4642.3,4642.2,0.7709]
[1757852630485,0.1072,4642.3,4642.0,2.15423942]
[1757852630679,0.1072,4642.3,4642.1,0.462]
[1757852630873,0.1072,4642.3,4641.9,2.1542883]
[1757852631187,0.1072,4642.3,4641.9,2.6162883]
[1757852631391,0.1072,4642.3,4642.0,2.15423901]
[1757852631814,0.1072,4642.3,4642.0,2.61623901]
[1757852631962,0.1072,4642.3,4642.0,0.462]
[1757852632458,0.1072,4642.3,4642.1,0.462]
[1757852632860,0.1072,4642.3,4641.9,2.15428991]
[1757852633193,0.1072,4642.3,4642.0,0.448]
[1757852633599,0.1072,4642.3,4642.0,2.60223224]
[1757852634093,0.1072,4642.3,4642.0,0.448]
[1757852634398,0.1072,4642.3,4641.8,0.27420348]
[1757852634596,0.1072,4642.3,4641.9,2.15428442]
[1757852634770,0.5938,4642.3,4641.9,2.15428442]
[1757852635501,0.5938,4642.3,4641.9,2.60228442]
[1757852635693,0.1072,4642.3,4641.9,2.60228442]
[1757852637506,0.1072,4642.3,4642.0,0.448]
[1757852640719,0.1072,4642.3,4642.0,2.15422873]
[1757852641001,0.1072,4642.3,4642.2,0.2943]
[1757852641201,0.1072,4642.3,4642.2,0.7423]
[1757852641404,0.1072,4642.3,4642.2,3.39305104]
[1757852642418,0.08,4642.8,4642.6,2.15394472]
[1757852642776,0.08,4642.8,4642.7,0.7423]
[1757852643207,0.08,4642.8,4642.3,0.64638108]
[1757852643574,0.1072,4642.4,4642.2,2.15414857]
[1757852643776,0.1072,4642.4,4642.2,2.60214857]
[1757852644011,0.1072,4642.4,4642.1,2.15965003]
[1757852644191,0.4866,4642.7,4642.1,0.00546]
[1757852644386,0.099,4642.2,4642.1,0.00546]
[1757852645989,2.15392528,4642.7,4642.1,0.29976]
[1757852646211,0.65476253,4642.6,4642.1,0.74776]
[1757852646412,0.65476253,4642.6,4642.1,0.29976]
[1757852646586,4.1526,4642.8,4642.2,0.448]
[1757852647210,4.1526,4642.8,4642.3,2.15408824]
[1757852647519,0.1072,4642.2,4642.1,2.15962141]
[1757852647718,0.1072,4642.2,4642.1,2.45392141]
[1757852648017,0.1072,4642.2,4642.1,2.95052141]
[1757852648182,0.1072,4642.2,4642.1,3.39852141]
[1757852649289,0.08,4642.8,4642.5,2.15398546]
[1757852649817,0.51114688,4642.8,4642.7,0.2943]
[1757852650024,0.1072,4642.5,4642.4,2.65065541]
[1757852650328,0.1072,4642.5,4642.4,2.94495541]
[1757852650719,0.1072,4642.5,4642.4,0.7423]
[1757852651038,0.2076,4642.5,4641.6,0.448]
[1757852651205,0.4866,4642.4,4641.8,3.001]
[1757852651394,0.1072,4642.2,4641.9,2.15426642]
[1757852651593,0.1072,4642.2,4642.0,2.15424385]
[1757852652000,0.1072,4642.2,4642.1,2.90195745]
[1757852652291,0.1072,4642.2,4642.1,3.39855745]
[1757852659310,0.002,4642.6,4642.5,2.15401184]
[1757852659505,0.1092,4642.6,4642.5,2.15401184]
[1757852659707,0.1092,4642.6,4642.5,2.90701184]
[1757852660432,0.1092,4642.6,4642.5,0.753]
[1757852661005,0.1092,4642.6,4642.2,0.4554]
[1757852661200,0.4777,4642.5,4642.1,0.00546]
[1757852661432,0.1072,4642.2,4642.1,0.00546]
[1757852661932,0.4115,4642.2,4642.1,0.00546]
[1757852662717,0.4115,4642.2,4642.1,2.15965745]
[1757852662905,0.1072,4642.2,4642.1,2.15965745]
[1757852663528,0.1072,4642.2,4642.1,0.00546]
[1757852663729,0.4115,4642.2,4642.1,0.00546]
[1757852667282,2.56565104,4642.2,4642.1,0.00546]
[1757852667430,2.8699726,4642.2,4642.1,0.00546]
[1757852667945,0.71582156,4642.2,4642.1,0.00546]
[1757852668832,0.4115,4642.2,4642.1,0.00546]
[1757852669764,2.56565104,4642.2,4642.1,0.00546]
[1757852669968,2.56765104,4642.2,4642.1,0.00546]
[1757852671329,0.4135,4642.2,4642.1,0.00546]
[1757852672560,2.56765104,4642.2,4642.1,0.00546]
[1757852673331,3.56528755,4642.2,4642.1,0.00546]
[1757852673662,3.08175104,4642.2,4642.1,0.00546]
[1757852674582,3.04535104,4642.2,4642.1,0.00546]
[1757852674780,3.08175104,4642.2,4642.1,0.00546]
[1757852676037,6.62835104,4642.2,4642.1,0.00546]
[1757852676256,3.93933154,4642.2,4642.1,0.00546]
[1757852676465,7.52233154,4642.2,4642.1,0.00546]
[1757852678647,7.67960703,4642.2,4642.1,0.00546]
[1757852678851,7.67960704,4642.2,4642.1,0.00546]
[1757852679101,7.55873154,4642.2,4642.1,0.00546]
[1757852681407,7.67951199,4642.2,4642.1,0.00546]
[1757852681686,10.67951199,4642.2,4642.1,0.00546]
[1757852684993,10.64311199,4642.2,4642.1,0.00546]
[1757852688089,10.64311199,4642.2,4640.5,2.15493148]
[1757852688090,2.15459779,4641.3,4640.5,2.15493148]
[1757852688295,5.85266095,4642.2,4640.5,2.15493148]
[1757852688296,2.1544847,4641.5,4641.2,0.3113]
[1757852688610,3.582,4641.4,4641.2,0.3113]
[1757852689058,1.60948789,4641.3,4641.2,0.3113]
[1757852690095,0.46322427,4641.3,4641.2,0.7582]
[1757852690476,2.61779303,4641.3,4641.2,0.7582]
[1757852690997,6.20579303,4641.3,4641.2,0.7582]
[1757852691198,4.05122427,4641.3,4641.2,0.7582]
[1757852691492,6.20579303,4641.3,4641.2,0.7582]
[1757852692382,4.05122427,4641.3,4641.2,0.7582]
[1757852693881,6.20579303,4641.3,4641.2,0.7582]
[1757852694082,4.05122427,4641.3,4641.2,0.7582]
[1757852694781,6.20579303,4641.3,4641.2,0.7582]
[1757852694981,6.20600544,4641.3,4641.2,0.7582]
[1757852696513,6.20600544,4641.3,4641.2,0.3113]
[1757852696725,2.1546393,4641.2,4640.9,0.001]
[1757852697051,0.77268604,4641.0,4640.9,0.001]
[1757852697210,1.23612272,4641.0,4640.9,0.001]
[1757852697417,1.23612272,4641.0,4640.9,0.7291]
[1757852697813,2.61814471,4641.0,4640.9,0.2873]
[1757852698015,2.61814471,4641.0,4640.9,0.7291]
[1757852698216,3.39099154,4641.0,4640.9,0.7291]
[1757852698416,3.39099154,4641.0,4640.9,0.2873]
[1757852698722,1.23628351,4641.0,4640.9,0.2873]
[1757852699183,0.46343668,4641.0,4640.9,0.2873]
[1757852699383,0.46343668,4641.0,4640.9,0.7291]
[1757852700517,1.23628351,4641.0,4640.9,0.7291]
[1757852703306,1.23628351,4641.0,4640.9,0.2873]
[1757852703520,0.46343668,4641.0,4640.9,0.2873]
[1757852704037,2.61814471,4641.0,4640.9,0.2873]
[1757852706010,0.46343668,4641.0,4640.9,0.2873]
[1757852707311,2.61814471,4641.0,4640.9,0.2873]
[1757852707715,0.46343668,4641.0,4640.9,0.2873]
[1757852708312,0.46343668,4641.0,4640.9,0.7291]
[1757852709229,1.23808382,4641.0,4640.9,0.7291]
[1757852709646,4.82208382,4641.0,4640.9,0.7291]
[1757852711204,4.04743668,4641.0,4640.9,0.7291]
[1757852711500,4.82208382,4641.0,4640.9,0.7291]
[1757852712425,4.82208382,4641.0,4640.4,2.15498183]
[1757852712426,0.1072,4640.9,4640.4,2.15498183]
[1757852712625,0.77483849,4640.5,4640.4,2.15498183]
[1757852712828,1.23827517,4640.5,4640.4,2.89398183]
[1757852714314,0.46343668,4640.5,4640.4,3.33578183]
[1757852714937,0.46343668,4640.5,4640.4,2.44128183]
[1757852715115,0.46343668,4640.5,4640.4,3.33578183]
[1757852715316,0.88203849,4640.7,4640.4,3.33578183]
[1757852715535,1.23973318,4640.6,4640.3,0.001]
[1757852715737,0.2987,4640.4,4640.3,0.001]
[1757852715942,0.76359469,4640.4,4640.3,0.001]
[1757852716128,1.98033318,4640.4,4640.3,0.001]
[1757852717339,1.20549469,4640.4,4640.3,0.001]
[1757852717645,4.23871878,4640.4,4640.3,0.001]
[1757852717809,4.68061878,4640.4,4640.3,0.001]
[1757852718443,2.52563215,4640.4,4640.3,0.001]
[1757852718744,3.30047064,4640.4,4640.3,0.001]
[1757852719343,5.80237064,4640.4,4640.3,0.001]
[1757852719509,4.58563215,4640.4,4640.3,0.001]
[1757852720336,8.17263215,4640.4,4640.3,0.001]
[1757852721055,8.61453215,4640.4,4640.3,0.001]
[1757852721211,10.76951878,4640.4,4640.3,0.001]
[1757852721416,8.61453215,4640.4,4640.3,0.001]
[1757852721633,10.76951878,4640.4,4640.3,0.001]
[1757852721835,9.11263215,4640.4,4640.3,0.001]
[1757852723235,11.26761878,4640.4,4640.3,0.001]
[1757852724422,9.11263215,4640.4,4640.3,0.001]
[1757852724621,8.61453215,4640.4,4640.3,0.001]
[1757852725250,9.19528272,4640.4,4640.3,0.001]
[1757852725948,6.19528272,4640.4,4640.3,0.001]
[1757852727249,8.35026935,4640.4,4640.3,0.001]
[1757852727444,8.84836935,4640.4,4640.3,0.001]
[1757852729917,6.69338272,4640.4,4640.3,0.001]
[1757852730319,5.61453215,4640.4,4640.3,0.001]
[1757852730520,4.79249469,4640.4,4640.3,0.001]
[1757852733322,5.25759469,4640.4,4640.3,0.001]
[1757852733723,4.79249469,4640.4,4640.3,0.001]
[1757852737952,4.35059469,4640.4,4640.3,0.001]
[1757852738258,4.35039015,4640.4,4640.3,0.001]
[1757852739769,0.76339015,4640.4,4640.3,0.001]
[1757852739973,4.04669015,4640.4,4640.3,0.2954]
[1757852740445,4.04669015,4640.4,4640.3,0.001]
[1757852740848,4.80739015,4640.4,4640.3,0.001]
[1757852742470,5.27249015,4640.4,4640.3,0.001]
[1757852742992,0.46469015,4640.4,4640.3,0.001]
[1757852743197,4.04669015,4640.4,4640.3,0.001]
[1757852743767,1.22539015,4640.4,4640.3,0.001]
[1757852743969,4.80739015,4640.4,4640.3,0.001]
[1757852745804,1.22539015,4640.4,4640.3,0.001]
[1757852746006,4.80739015,4640.4,4640.3,0.001]
[1757852746700,5.60811516,4640.4,4640.3,0.001]
[1757852746901,6.07181516,4640.4,4640.3,0.001]
[1757852747676,2.48981516,4640.4,4640.3,0.001]
[1757852747901,6.07181516,4640.4,4640.3,0.001]
[1757852748980,6.65267785,4640.4,4640.3,0.001]
[1757852749517,6.07181516,4640.4,4640.3,0.001]
[1757852749737,8.22680179,4640.4,4640.3,0.001]
[1757852752233,6.07181516,4640.4,4640.3,0.001]
[1757852752400,8.22680179,4640.4,4640.3,0.001]
[1757852754595,1.26551516,4640.4,4640.3,0.2894]
[1757852754801,4.04669015,4640.4,4640.3,0.2894]
[1757852755100,4.76649015,4640.4,4640.3,0.001]
[1757852756938,1.18449015,4640.4,4640.3,0.001]
[1757852757251,4.76649015,4640.4,4640.3,0.001]
[1757852757551,5.22909015,4640.4,4640.3,0.001]
[1757852757760,6.02558015,4640.4,4640.3,0.001]
[1757852760459,8.18056678,4640.4,4640.3,0.001]
[1757852769251,8.28056678,4640.4,4640.3,0.001]
[1757852771390,5.23438015,4640.4,4640.3,0.001]
[1757852771593,0.56469015,4640.4,4640.3,0.7655]
[1757852771763,4.14569015,4640.4,4640.3,1.1947]
[1757852773061,0.56469015,4640.4,4640.3,1.1947]
[1757852773393,4.25289015,4640.4,4640.3,1.1947]
[1757852774484,4.25289015,4640.4,4640.3,3.34973307]
[1757852774678,4.25289015,4640.4,4640.3,1.1947]
[1757852775184,3.7882,4640.4,4640.3,1.1947]
[1757852775386,4.25311435,4640.4,4640.3,0.2894]
[1757852776171,3.7882,4640.4,4640.3,0.2894]
[1757852776580,4.25309992,4640.4,4640.3,0.2894]
[1757852777776,3.7882,4640.4,4640.3,0.2894]
[1757852779395,0.2072,4640.4,4640.3,2.93793307]
[1757852779571,3.7882,4640.4,4640.3,3.40393307]
[1757852781580,0.2072,4640.4,4640.3,3.40393307]
[1757852781902,0.1,4640.4,4640.3,3.95993822]
[1757852784700,0.1,4640.4,4640.3,0.2894]
[1757852784891,0.1,4640.4,4640.3,0.001]
[1757852785199,0.1,4640.4,4640.3,0.297]
[1757852785765,0.3952,4640.4,4640.3,0.001]
[1757852786004,1.3153,4640.4,4640.3,0.001]
[1757852787716,0.8481,4640.4,4640.3,0.001]
[1757852788319,0.3952,4640.4,4640.3,0.001]
[1757852788539,1.3153,4640.4,4640.3,0.001]
[1757852791524,0.8481,4640.4,4640.3,0.001]
[1757852791703,0.3952,4640.4,4640.3,0.001]
[1757852791901,0.1,4640.4,4640.3,0.001]
[1757852794931,0.2072,4640.4,4640.3,0.001]
[1757852795127,0.2072,4640.4,4640.3,2.45203307]
[1757852795447,3.7882,4640.4,4640.3,0.297]
[1757852795850,0.2072,4640.4,4640.3,0.001]
[1757852797651,0.1,4640.4,4640.3,6.48279033]
[1757852797820,0.1,4640.4,4640.3,6.41153307]
[1757852798019,0.1,4640.4,4640.3,7.25917347]
[1757852802643,0.1,4640.4,4640.3,6.79317347]
[1757852802843,0.1,4640.4,4640.3,0.20200158]
[1757852802844,1.3153,4640.4,4640.3,0.20200158]
[1757852803052,1.55403,4640.4,4640.3,0.20200158]
[1757852805329,1.4225,4640.4,4640.3,0.20200158]
[1757852810652,0.5024,4640.4,4640.3,0.20200158]
[1757852811670,0.2072,4640.4,4640.3,0.50540158]
[1757852812170,0.2072,4640.4,4640.3,2.66043465]
[1757852812669,0.2072,4640.4,4640.3,0.50540158]
[1757852813876,0.2072,4640.4,4640.3,2.66043465]
[1757852814167,0.2072,4640.4,4640.3,0.50540158]
[1757852814570,0.2072,4640.4,4640.3,2.66043465]
[1757852814779,0.1,4640.4,4640.3,2.66043465]
[1757852815568,0.1,4640.4,4640.3,3.3071139]
[1757852817269,0.1,4640.4,4640.3,3.30706367]
[1757852820496,0.1,4640.4,4640.3,12.08370539]
[1757852820696,0.1,4640.4,4640.3,12.19090539]
[1757852820983,0.1,4640.4,4640.3,11.76290539]
[1757852821686,0.1,4640.4,4640.3,11.29970539]
[1757852823759,0.1,4640.4,4640.3,12.19090539]
[1757852825967,0.1,4640.4,4640.3,11.76290539]
[1757852826887,0.1,4640.4,4640.3,12.19090539]
[1757852827585,0.1,4640.4,4640.3,11.76290539]
[1757852828060,0.1,4640.4,4640.3,11.29970539]
[1757852829477,0.1,4640.4,4640.3,12.09170539]
[1757852829790,0.002,4640.9,4640.4,5.94698663]
[1757852829988,0.002,4640.9,4640.8,2.15480089]
[1757852830207,0.002,4640.9,4640.8,9.24965224]
[1757852830657,0.002,4640.9,4640.8,5.82335224]
[1757852830658,0.3181,4640.9,4640.8,5.82335224]
[1757852831007,1.2575,4640.9,4640.8,5.82335224]
[1757852831171,1.2575,4640.9,4640.8,9.40535224]
[1757852831692,1.2575,4640.9,4640.8,5.82335224]
[1757852831996,1.2575,4640.9,4640.8,9.40535224]
[1757852832984,1.2575,4640.9,4640.8,9.40509903]
[1757852834285,0.7857,4640.9,4640.8,9.40509903]
[1757852837982,0.002,4640.9,4640.8,10.85919734]
[1757852838216,0.002,4640.9,4640.8,11.33819734]
[1757852839708,0.002,4640.9,4640.8,11.44539734]
[1757852840213,0.002,4640.9,4640.8,12.23739734]
[1757852840376,0.002,4640.9,4640.8,12.67369734]
[1757852840575,0.002,4640.9,4640.8,12.67367612]
[1757852841697,0.002,4640.9,4640.8,12.23737612]
[1757852842610,0.002,4640.9,4640.8,12.67367612]
[1757852843204,0.002,4640.9,4640.8,12.23737612]
[1757852847781,0.002,4640.9,4640.8,11.75837612]
[1757852848212,0.002,4640.9,4640.8,12.23737612]
[1757852850609,0.002,4640.9,4640.8,11.75837612]
[1757852855409,0.002,4640.9,4640.8,11.46027612]
[1757852856521,0.002,4640.9,4640.8,7.87827612]
[1757852856522,1.272,4640.9,4640.8,7.87827612]
[1757852856815,1.272,4640.9,4640.8,9.50927781]
[1757852857422,1.272,4640.9,4640.8,9.04167781]
[1757852859992,1.272,4640.9,4640.8,5.46267781]
[1757852860220,1.272,4640.9,4640.8,9.04167781]
[1757852861018,1.272,4640.9,4640.8,5.46267781]
[1757852861224,1.272,4640.9,4640.8,8.93447781]
[1757852862932,1.272,4640.9,4640.8,6.77967692]
[1757852863139,1.272,4640.9,4640.8,8.93447781]
[1757852863895,1.272,4640.9,4640.8,3.77967692]
[1757852864314,1.272,4640.9,4640.8,5.93447781]
[1757852866828,1.272,4640.9,4640.8,3.77967692]
[1757852868134,1.272,4640.9,4640.8,3.78067692]
[1757852868710,1.272,4640.9,4640.8,5.93547781]
[1757852869032,0.7706,4640.9,4640.8,5.93547781]
[1757852870138,0.002,4640.9,4640.8,2.65657781]
[1757852870310,0.002,4640.9,4640.8,6.23657781]
[1757852874550,0.7638,4640.9,4640.8,5.93547781]
[1757852874938,0.7638,4640.9,4640.8,5.93548559]
[1757852877874,0.002,4640.9,4640.8,6.25058559]
[1757852882183,0.002,4640.9,4640.8,6.50293368]
[1757852886067,0.002,4640.9,4640.8,6.61013368]
[1757852888057,0.7524,4640.9,4640.8,6.29503368]
[1757852888285,0.7524,4640.9,4640.8,6.04268559]
[1757852888591,1.224,4640.9,4640.8,6.04268559]
[1757852892593,0.7524,4640.9,4640.8,6.04268559]
[1757852892891,0.002,4640.9,4640.8,6.35799617]
[1757852893685,0.002,4640.9,4640.8,6.81859617]
[1757852893882,0.002,4640.9,4640.8,7.80680448]
[1757852894091,0.002,4640.9,4640.8,7.34620448]
[1757852896570,0.002,4640.9,4640.8,7.34620814]
[1757852897571,0.002,4640.9,4640.8,7.03110814]
[1757852900273,0.002,4640.9,4640.8,10.03110814]
[1757852901803,0.002,4640.9,4640.8,10.33310814]
[1757852902707,0.002,4640.9,4640.8,10.03110814]
[1757852903408,0.002,4640.9,4640.8,10.48590814]
[1757852906610,0.002,4640.9,4640.8,10.78790814]
[1757852909912,0.002,4640.9,4640.8,11.57990814]
[1757852916852,0.002,4640.9,4640.8,12.05980814]
[1757852917005,0.002,4641.4,4641.3,2.15456876]
[1757852917211,0.002,4641.4,4641.3,11.40101338]
[1757852917535,0.00041025,4641.4,4641.3,12.6163677]
[1757852917736,1e-08,4641.9,4641.4,33.792]
[1757852918040,1e-08,4641.9,4641.8,5.94633667]
[1757852918243,1e-08,4642.8,4642.7,2.94591905]
[1757852918413,1e-08,4642.8,4642.7,11.37881799]
[1757852918613,1e-08,4642.8,4642.7,12.61571799]
[1757852918816,1e-08,4642.8,4642.7,12.89284696]
[1757852919158,1e-08,4642.8,4642.7,13.34444696]
[1757852919350,1e-08,4642.8,4642.7,13.14354802]
[1757852919512,1e-08,4642.8,4642.7,13.34331262]
[1757852922954,1e-08,4642.8,4642.7,12.40841262]
[1757852924516,1e-08,4642.8,4642.7,8.52741262]
[1757852924758,0.75020001,4642.8,4642.7,8.52741262]
[1757852924956,0.75020001,4642.8,4642.7,12.10641262]
[1757852926392,1.21470001,4642.8,4642.7,12.10641262]
[1757852926883,0.75020001,4642.8,4642.7,12.10641262]
[1757852927071,0.75020001,4642.8,4642.7,12.21292447]
[1757852927676,1e-08,4642.8,4642.7,12.21292447]
[1757852928682,0.74300001,4642.8,4642.7,12.21192447]
[1757852929088,0.74500001,4642.8,4642.7,12.21192447]
[1757852929457,1.20950001,4642.8,4642.7,12.21192447]
[1757852929678,1.20950001,4642.8,4642.7,8.63392447]
[1757852929883,1.20950001,4642.8,4642.7,12.21192447]
[1757852931857,0.74500001,4642.8,4642.7,12.21192447]
[1757852932061,1.20950001,4642.8,4642.7,12.21192447]
[1757852932994,1.20950001,4642.8,4642.7,12.21092447]
[1757852935888,0.74500001,4642.8,4642.7,12.21092447]
[1757852938613,0.74500001,4642.8,4642.7,12.2112168]
[1757852940324,1.22050001,4642.8,4642.7,12.2112168]
[1757852940624,1.24070001,4642.8,4642.7,12.2112168]
[1757852941184,1.24070001,4642.8,4642.7,2.41116878]
[1757852941385,1.24070001,4642.8,4642.7,5.42936878]
[1757852941586,1.24070001,4642.8,4642.7,8.93028783]
[1757852941985,1.24070001,4642.8,4642.7,5.35328783]
[1757852942192,1.24070001,4642.8,4642.7,8.93028783]
[1757852947594,1.24070001,4642.8,4642.7,5.35328783]
[1757852947794,1.24070001,4642.8,4642.7,8.93028783]
[1757852949305,0.76520001,4642.8,4642.7,8.93028783]
[1757852949507,0.00200001,4642.8,4642.7,9.34578783]
[1757852949830,0.00200001,4642.8,4642.7,11.35250337]
[1757852950032,0.00200001,4642.8,4642.7,11.91380337]
[1757852950239,0.00027677,4642.8,4642.7,11.91380337]
[1757852951603,0.00027677,4642.8,4642.7,11.60550337]
[1757852952407,0.74107677,4642.8,4642.7,11.60550337]
[1757852952645,0.74107677,4642.8,4642.7,10.39078783]
[1757852958535,1.23217677,4642.8,4642.7,9.59878783]
[1757852958844,1.23217677,4642.8,4642.6,0.001]
[1757852958845,1.8785857,4642.8,4642.6,0.001]
[1757852959031,2.34177762,4642.7,4642.6,0.001]
[1757852959222,2.15410464,4642.3,4642.2,0.001]
[1757852959546,2.46200464,4642.3,4642.2,0.001]
[1757852959742,3.40720464,4642.3,4642.2,0.001]
[1757852960850,4.05375706,4642.3,4642.2,0.001]
[1757852961143,4.67453563,4642.3,4642.2,0.001]
[1757852961944,2.52043099,4642.3,4642.2,0.001]
[1757852962149,1.89965242,4642.3,4642.2,0.001]
[1757852962948,4.05375706,4642.3,4642.2,0.001]
[1757852963347,3.40720464,4642.3,4642.2,0.001]
[1757852967931,1.2531,4642.3,4642.2,0.001]
[1757852969556,3.40720464,4642.3,4642.2,0.001]
[1757852969740,4.32122212,4642.3,4642.2,0.001]
[1757852971642,2.16711748,4642.3,4642.2,0.001]
[1757852972061,6.98620464,4642.3,4642.2,0.001]
[1757852972840,4.8321,4642.3,4642.2,0.001]
[1757852973039,6.98620464,4642.3,4642.2,0.001]
[1757852974332,3.40720464,4642.3,4642.2,0.001]
[1757852974532,6.98520464,4642.3,4642.2,0.001]
[1757852974833,7.89912688,4642.3,4642.2,0.001]
[1757852978971,5.74502224,4642.3,4642.2,0.001]
[1757852979176,7.89912688,4642.3,4642.2,0.001]
[1757852979342,1.22182224,4642.3,4642.2,0.001]
[1757852979544,3.578,4642.3,4642.2,0.3001]
[1757852979745,0.1072,4642.3,4642.2,0.3001]
[1757852981473,0.1072,4642.3,4642.2,0.001]
[1757852987450,0.865,4642.3,4642.2,0.001]
[1757852988084,0.1072,4642.3,4642.2,0.001]
[1757853000282,0.1072,4642.3,4642.2,0.2981]
[1757853002319,0.1072,4642.3,4642.2,0.001]
[1757853006331,0.1072,4642.3,4642.2,2.15515104]
[1757853006503,0.002,4642.6,4642.5,2.15401184]
[1757853006689,0.002,4642.6,4642.5,2.45111184]
[1757853007113,0.002,4642.6,4642.5,2.65196547]
[1757853008426,0.002,4642.6,4642.5,3.57296547]
[1757853008999,0.002,4642.6,4642.5,4.36496547]
[1757853009201,0.002,4642.6,4642.5,8.32984464]
[1757853009519,0.002,4642.6,4642.5,11.90784464]
[1757853012840,0.002,4642.6,4642.5,11.99400131]
[1757853013614,1e-08,4642.8,4642.7,2.94591905]
[1757853013923,1e-08,4642.8,4642.7,6.14677268]
[1757853014131,1e-08,4642.8,4642.7,8.77966472]
[1757853017844,1e-08,4642.8,4642.7,12.35666472]
[1757853019228,1e-08,4642.8,4642.7,12.81016472]
[1757853019808,1e-08,4642.8,4642.7,12.80887649]
[1757853022311,1e-08,4642.8,4642.7,12.91607649]
[1757853027351,1e-08,4642.8,4642.7,12.91604317]
[1757853028626,1e-08,4642.8,4642.7,12.45964317]
[1757853028834,1e-08,4642.8,4642.7,11.99504317]
[1757853029918,0.28560001,4642.8,4642.7,11.69694317]
[1757853030121,0.28560001,4642.8,4642.7,8.12094317]
[1757853030321,1.25370001,4642.8,4642.7,8.12094317]
[1757853030529,1.25370001,4642.8,4642.7,11.69694317]
[1757853033756,1.25370001,4642.8,4642.7,9.49015113]
[1757853033922,1.25370001,4642.8,4642.7,6.70615113]
[1757853034124,1.25370001,4642.8,4642.7,5.46065113]
[1757853034323,1.25370001,4642.8,4642.7,9.03665113]
[1757853034752,1.25370001,4642.8,4642.7,9.82865113]
[1757853036351,1.25370001,4642.8,4642.7,6.25265113]
[1757853036553,1.25370001,4642.8,4642.7,9.82865113]
[1757853038360,1.25370001,4642.8,4642.6,0.001]
[1757853038361,1.37927001,4642.8,4642.6,0.001]
[1757853038661,1.37927001,4642.8,4641.7,0.001]
[1757853038827,0.58064668,4642.0,4640.8,0.72646465]
[1757853039052,2.15478246,4640.9,4640.3,1.083]
[1757853039275,0.2921,4640.4,4640.3,0.001]
[1757853039663,1.2602,4640.4,4640.3,0.001]
[1757853040582,0.7892,4640.4,4640.3,2.15603307]
[1757853040784,0.9681,4640.9,4640.6,0.792]
[1757853040953,0.9681,4640.8,4640.6,0.792]
[1757853041153,0.2921,4640.7,4640.6,0.792]
[1757853041449,1.2602,4640.7,4640.6,0.792]
[1757853041853,1.2602,4640.7,4640.6,2.94689376]
[1757853044887,0.7892,4640.7,4640.6,2.94689376]
[1757853045383,0.2921,4640.7,4640.6,2.94689376]
[1757853045589,0.4971,4641.0,4640.9,2.15475446]
[1757853045785,0.7892,4641.0,4640.9,2.15475446]
[1757853045990,0.7892,4641.0,4640.9,5.15475446]
[1757853046293,2.5936,4641.9,4641.5,2.15446597]
[1757853046460,2.15398112,4642.6,4641.5,2.15446597]
[1757853046461,0.3028,4641.6,4641.5,2.15446597]
[1757853046864,1.2444,4641.6,4641.5,2.15446597]
[1757853047691,0.3028,4641.6,4641.5,2.15446597]
[1757853049078,0.4906,4642.0,4641.6,0.792]
[1757853049287,0.451,4642.2,4641.8,0.792]
[1757853049667,0.4906,4642.1,4642.0,2.15420042]
[1757853049995,0.7934,4642.1,4642.0,2.15420042]